[Event "Niedersachsen-ch B 2024"]
[Site "Verden Aller"]
[Date "2024.01.06"]
[Round "6.13"]
[White "Grabowski, Petra"]
[Black "ter Stal, Esther"]
[Result "0-1"]
[ECO "E12"]
[WhiteElo "1600"]
[BlackElo "1486"]
[Annotator "NA"]
[PlyCount "134"]
[EventDate "2024.01.01"]
[EventType "swiss"]
[EventCountry "GER"]
[SourceTitle "playchess.com"]
[Source "ChessBase"]
[SourceQuality "1"]
[TimeControl "40/5400+30:1800+30"]

1. d4 {[%emt 0:00:30]} Nf6 {[%emt 0:02:05]} 2. c4 {[%emt 0:00:00]} e6 {[%emt 0:00:08]} 3. Nf3 {[%emt 0:00:00]} b6 {[%emt 0:00:13]} 4. a3 {[%emt 0:00:17]} Bb7 {[%emt 0:00:34]} 5. Nc3 {[%emt 0:00:19]} Be7 {[%emt 0:02:00]} 6. Bg5 {[%emt 0:01:17]} Ne4 {[%emt 0:01:37]} 7. Bxe7 {[%emt 0:02:38]} Qxe7 {[%emt 0:00:37]} 8. Nxe4 {[%emt 0:01:02]} Bxe4 {[%emt 0:00:10]} 9. e3 {[%emt 0:01:26]} O-O {[%emt 0:01:21]} 10. Bd3 {[%emt 0:00:53]} Bb7 {[%emt 0:00:48]} 11. O-O {[%emt 0:05:54]} f5 {[%emt 0:06:54]} 12. Qe2 {[%emt 0:09:22]} d6 {[%emt 0:05:56]} 13. e4 {[%emt 0:03:58]} fxe4 {[%emt 0:05:14]} 14. Bxe4 {[%emt 0:00:09]} Bxe4 {[%emt 0:00:14]} 15. Qxe4 {[%emt 0:00:05]} Nd7 {[%emt 0:00:40]} 16. Rae1 {[%emt 0:04:07]} Rae8 {[%emt 0:04:36]} 17. b4 {[%emt 0:16:24]} c5 {[%emt 0:20:41]} 18. d5 {[%emt 0:02:14]} e5 {[%emt 0:05:20]} 19. b5 {[%emt 0:09:03]} a6 {[%emt 0:05:04]} 20. a4 {[%emt 0:07:07]} a5 {[%emt 0:01:54]} 21. Nd2 {[%emt 0:14:00]} Qg5 {[%emt 0:06:00]} 22. Qe3 {[%emt 0:05:36]} Qh5 {[%emt 0:03:13]} 23. Ne4 {[%emt 0:00:59]} Qg6 {[%emt 0:04:42]} 24. Qg3 {[%emt 0:00:03]} Qh6 {[%emt 0:02:56]} 25. Qh3 {[%emt 0:02:29]} Qxh3 {[%emt 0:02:39]} 26. gxh3 {[%emt 0:00:02]} Rf3 {[%emt 0:02:01]} 27. Re3 {[%emt 0:00:40]} Ref8 {[%emt 0:02:28]} 28. Rfe1 {[%emt 0:02:41]} R3f4 {[%emt 0:04:12]} 29. R1e2 {[%emt 0:00:51]} Kf7 {[%emt 0:02:51]} 30. Nxd6+ {[%emt 0:00:19]} Ke7 {[%emt 0:00:40]} 31. Ne4 {[%emt 0:00:32]} h6 {[%emt 0:02:31]} 32. Kg2 {[%emt 0:01:01]} Nf6 {[%emt 0:00:30]} 33. Nd2 {[%emt 0:01:27]} Nd7 {[%emt 0:01:54]} 34. Rf3 {[%emt 0:02:32]} Rxf3 {[%emt 0:00:39]} 35. Nxf3 {[%emt 0:00:02]} Kd6 {[%emt 0:01:00]} 36. Nd2 {[%emt 0:01:35]} Rf4 {[%emt 0:00:44]} 37. Re4 {[%emt 0:00:01]} Rf5 {[%emt 0:01:15]} 38. Rg4 {[%emt 0:00:02]} g5 {[%emt 0:00:29]} 39. Re4 {[%emt 0:03:18]} Nf6 {[%emt 0:00:45]} 40. Re3 {[%emt 0:00:15]} Rf4 {[%emt 0:00:37]} 41. f3 {[%emt 0:06:06]} Rd4 {[%emt 0:08:54]} 42. Ne4+ {[%emt 0:05:39]} Nxe4 {[%emt 0:07:27]} 43. Rxe4 {[%emt 0:00:01]} Rd2+ {[%emt 0:01:19]} 44. Kg3 {[%emt 0:00:02]} Ra2 {[%emt 0:01:20]} 45. h4 {[%emt 0:02:15]} Rxa4 {[%emt 0:02:04]} 46. hxg5 {[%emt 0:00:13]} hxg5 {[%emt 0:00:31]} 47. Kg4 {[%emt 0:00:48]} Rb4 {[%emt 0:01:07]} 48. Kxg5 {[%emt 0:00:39]} a4 {[%emt 0:00:11]} 49. Kf6 {[%emt 0:03:33]} a3 {[%emt 0:00:49]} 50. Rxe5 {[%emt 0:00:52]} Rxc4 {[%emt 0:01:10]} 51. Re8 {[%emt 0:08:28]} Rf4+ {[%emt 0:02:03]} 52. Kg5 {[%emt 0:00:02]} Ra4 {[%emt 0:00:59]} 53. Re1 {[%emt 0:00:36]} Kxd5 {[%emt 0:01:54]} 54. h4 {[%emt 0:01:59]} a2 {[%emt 0:01:05]} 55. Ra1 {[%emt 0:01:45]} Kc4 {[%emt 0:00:58]} 56. h5 {[%emt 0:00:13]} Kb3 {[%emt 0:00:20]} 57. h6 {[%emt 0:00:11]} Kb2 {[%emt 0:00:48]} 58. h7 {[%emt 0:00:21]} Ra8 {[%emt 0:00:14]} 59. Rh1 {[%emt 0:02:20]} a1=Q {[%emt 0:02:30]} 60. Rxa1 {[%emt 0:03:01]} Kxa1 {[%emt 0:00:11]} 61. Kg6 {[%emt 0:01:38]} c4 {[%emt 0:00:27]} 62. Kg7 {[%emt 0:00:29]} c3 {[%emt 0:00:16]} 63. h8=Q {[%emt 0:00:30]} Rxh8 {[%emt 0:00:06]} 64. Kxh8 {[%emt 0:00:02]} c2 {[%emt 0:00:08]} 65. f4 {[%emt 0:00:04]} c1=Q {[%emt 0:00:08]} 66. f5 {[%emt 0:00:02]} Qf4 {[%emt 0:00:19]} 67. Kg7 {[%emt 0:00:05]} Qxf5 {[%emt 0:00:14]} 0-1

[Event "Niedersachsen-ch B 2024"]
[Site "Verden Aller"]
[Date "2024.01.06"]
[Round "6.16"]
[White "Schumacher, Klaus"]
[Black "Eitel, Luc"]
[Result "1-0"]
[ECO "D35"]
[WhiteElo "1724"]
[BlackElo "1535"]
[Annotator "NA RC"]
[PlyCount "92"]
[EventDate "2024.01.01"]
[EventType "swiss"]
[EventCountry "GER"]
[SourceTitle "playchess.com"]
[Source "ChessBase"]
[SourceQuality "1"]
[TimeControl "40/5400+30:1800+30"]

1. c4 {[%emt 0:00:03]} e6 {[%emt 0:02:01]} 2. d4 {[%emt 0:00:27]} d5 {[%emt 0:00:10]} 3. cxd5 {[%emt 0:00:10]} exd5 {[%emt 0:00:09]} 4. Nc3 {[%emt 0:00:24]} Nf6 {[%emt 0:00:37]} 5. Nf3 {[%emt 0:00:19]} Bd6 {[%emt 0:01:22]} 6. Nb5 {[%emt 0:01:20]} Bb4+ {[%emt 0:01:28]} 7. Bd2 {[%emt 0:00:10]} Bxd2+ {[%emt 0:00:08]} 8. Qxd2 {[%emt 0:00:08]} O-O {[%emt 0:00:22]} 9. e3 {[%emt 0:01:30]} Bf5 {[%emt 0:02:49]} 10. Bd3 {[%emt 0:00:57]} Bxd3 {[%emt 0:01:26]} 11. Qxd3 {[%emt 0:00:09]} c6 {[%emt 0:01:01]} 12. Nc3 {[%emt 0:00:15]} Qb6 {[%emt 0:00:28]} 13. O-O {[%emt 0:00:29]} Nbd7 {[%emt 0:00:22]} 14. b3 {[%emt 0:01:59]} Rfe8 {[%emt 0:00:25]} 15. Rac1 {[%emt 0:00:27]} Ne4 {[%emt 0:00:32]} 16. Nd2 {[%emt 0:02:19]} Ndf6 {[%emt 0:03:05]} 17. Ndxe4 {[%emt 0:00:21]} Nxe4 {[%emt 0:00:11]} 18. Rc2 {[%emt 0:05:49]} Nxc3 {[%emt 0:02:00]} 19. Qxc3 {[%emt 0:01:04]} Re6 {[%emt 0:00:30]} 20. b4 {[%emt 0:01:44]} a6 {[%emt 0:00:38]} 21. a4 {[%emt 0:00:50]} Rc8 {[%emt 0:03:42]} 22. Rb1 {[%emt 0:00:58]} Qc7 {[%emt 0:00:22]} 23. b5 {[%emt 0:01:02]} axb5 {[%emt 0:00:12]} 24. axb5 {[%emt 0:00:09]} h6 {[%emt 0:01:27]} 25. Qd3 {[%emt 0:06:56]} Qd7 {[%emt 0:02:01]} 26. bxc6 {[%emt 0:01:02]} Rexc6 {[%emt 0:01:29]} 27. Rxc6 {[%emt 0:00:48]} Qxc6 {[%emt 0:01:27]} 28. h3 {[%emt 0:00:14]} Rb8 {[%emt 0:00:14]} 29. Qb5 {[%emt 0:00:49]} Qc4 {[%emt 0:02:26]} 30. Qxc4 {[%emt 0:04:03]} dxc4 {[%emt 0:00:35]} 31. Rb5 {[%emt 0:00:05]} b6 {[%emt 0:00:56]} 32. Kf1 {[%emt 0:00:15]} c3 {[%emt 0:00:12]} 33. Rb1 {[%emt 0:01:22]} b5 {[%emt 0:00:12]} 34. Ke2 {[%emt 0:00:08]} b4 {[%emt 0:01:05]} 35. Kd3 {[%emt 0:00:07]} Kf8 {[%emt 0:00:14]} 36. Kc2 {[%emt 0:01:09]} Ke7 {[%emt 1:12:12]} 37. Kb3 {[%emt 0:00:11]} Kd6 {[%emt 0:00:00]} 38. e4 {[%emt 0:03:56]} Re8 {[%emt 0:00:00]} 39. f3 {[%emt 0:00:45]} Rb8 {[%emt 0:00:00]} 40. Ra1 {[%emt 0:00:54]} Rb6 {[%emt 0:00:00]} 41. Ra2 {[%emt 0:33:26]} f6 {[%emt 0:00:00]} 42. Re2 {[%emt 0:01:09]} Kc6 {[%emt 0:00:00]} 43. Rc2 {[%emt 1:01:38]} Kb5 {[%emt 0:00:00]} 44. Ra2 {[%emt 0:00:00]} Rd6 {[%emt 0:00:00]} 45. d5 {[%emt 0:00:00]} Rb6 {[%emt 0:00:00]} 46. Ra4 {[%emt 0:00:00]} Rb7 {[%emt 0:00:00]} 1-0

[Event "Niedersachsen-ch B 2024"]
[Site "Verden Aller"]
[Date "2024.01.06"]
[Round "6.17"]
[White "Nordhorn, Horst"]
[Black "Pfeifer, Frank"]
[Result "1-0"]
[ECO "B07"]
[WhiteElo "1696"]
[BlackElo "1529"]
[Annotator "NA RC"]
[PlyCount "79"]
[EventDate "2024.01.01"]
[EventType "swiss"]
[EventCountry "GER"]
[SourceTitle "playchess.com"]
[Source "ChessBase"]
[SourceQuality "1"]
[TimeControl "40/5400+30:1800+30"]

1. d4 {[%emt 0:00:16]} Nf6 {[%emt 0:00:02]} 2. Nc3 {[%emt 0:00:17]} d6 {[%emt 0:00:14]} 3. e4 {[%emt 0:00:11]} Nbd7 {[%emt 0:00:32]} 4. f4 {[%emt 0:01:00]} c5 {[%emt 0:00:28]} 5. d5 {[%emt 0:01:51]} a6 {[%emt 0:01:11]} 6. a4 {[%emt 0:01:21]} g6 {[%emt 0:01:57]} 7. Nf3 {[%emt 0:00:35]} Bg7 {[%emt 0:00:17]} 8. Bc4 {[%emt 0:01:57]} O-O {[%emt 0:00:19]} 9. O-O {[%emt 0:00:09]} Nb6 {[%emt 0:01:25]} 10. Be2 {[%emt 0:06:36]} e6 {[%emt 0:00:52]} 11. a5 {[%emt 0:00:09]} Nbd7 {[%emt 0:00:18]} 12. dxe6 {[%emt 0:01:58]} Nb8 {[%emt 0:01:14]} 13. exf7+ {[%emt 0:00:16]} Kh8 {[%emt 0:01:13]} 14. Bc4 {[%emt 0:00:57]} Nc6 {[%emt 0:01:35]} 15. Ng5 {[%emt 0:00:26]} Ng4 {[%emt 0:00:55]} 16. Be6 {[%emt 0:00:40]} Bd4+ {[%emt 0:00:50]} 17. Kh1 {[%emt 0:01:23]} Nf2+ {[%emt 0:00:16]} 18. Rxf2 {[%emt 0:00:06]} Bxf2 {[%emt 0:00:16]} 19. Bxc8 {[%emt 0:02:42]} Rxc8 {[%emt 0:02:49]} 20. Ne6 {[%emt 0:01:11]} Qf6 {[%emt 0:00:44]} 21. Nxf8 {[%emt 0:00:12]} Rxf8 {[%emt 0:00:08]} 22. Nd5 {[%emt 0:01:03]} Qe6 {[%emt 0:02:43]} 23. Qf3 {[%emt 0:05:15]} Bd4 {[%emt 0:01:17]} 24. c3 {[%emt 0:00:08]} Bg7 {[%emt 0:00:26]} 25. Bd2 {[%emt 0:01:28]} Qxf7 {[%emt 0:01:24]} 26. g3 {[%emt 0:02:50]} h5 {[%emt 0:02:49]} 27. Kg2 {[%emt 0:11:13]} Ne5 {[%emt 0:00:09]} 28. Qe2 {[%emt 0:00:14]} Ng4 {[%emt 1:18:07]} 29. h3 {[%emt 0:58:36]} Nf6 {[%emt 0:00:00]} 30. Qc4 {[%emt 0:00:00]} Re8 {[%emt 0:00:00]} 31. Re1 {[%emt 0:00:00]} Bh6 {[%emt 0:00:00]} 32. Qd3 {[%emt 0:00:00]} Nxd5 {[%emt 0:00:00]} 33. Qxd5 {[%emt 0:00:00]} Qxd5 {[%emt 0:00:00]} 34. exd5 {[%emt 0:00:00]} Rxe1 {[%emt 0:00:00]} 35. Bxe1 {[%emt 0:00:00]} Kg7 {[%emt 0:00:00]} 36. Kf3 {[%emt 0:00:00]} Kf6 {[%emt 0:00:00]} 37. Ke4 {[%emt 0:00:00]} Bf8 {[%emt 0:00:00]} 38. c4 {[%emt 0:00:00]} Be7 {[%emt 0:00:00]} 39. Bc3+ {[%emt 0:00:00]} Kf7 {[%emt 0:00:00]} 40. b4 {[%emt 0:00:00]} 1-0

[Event "Niedersachsen-ch B 2024"]
[Site "Verden Aller"]
[Date "2024.01.06"]
[Round "6.18"]
[White "Warns, Harald"]
[Black "Bartel, Reinhard"]
[Result "1-0"]
[ECO "D40"]
[WhiteElo "1683"]
[BlackElo "1525"]
[Annotator "NA RC"]
[PlyCount "66"]
[EventDate "2024.01.01"]
[EventType "swiss"]
[EventCountry "GER"]
[SourceTitle "playchess.com"]
[Source "ChessBase"]
[SourceQuality "1"]
[TimeControl "40/5400+30:1800+30"]

1. d4 {[%emt 0:00:05]} Nf6 {[%emt 0:00:11]} 2. c4 {[%emt 0:00:02]} e6 {[%emt 0:00:16]} 3. Nf3 {[%emt 0:00:02]} c5 {[%emt 0:00:55]} 4. e3 {[%emt 0:00:07]} Nc6 {[%emt 0:00:53]} 5. a3 {[%emt 0:00:09]} a5 {[%emt 0:02:52]} 6. Nc3 {[%emt 0:00:16]} d5 {[%emt 0:03:12]} 7. dxc5 {[%emt 0:01:00]} Bxc5 {[%emt 0:00:39]} 8. cxd5 {[%emt 0:00:18]} exd5 {[%emt 0:01:34]} 9. Bb5 {[%emt 0:01:04]} O-O {[%emt 0:01:15]} 10. O-O {[%emt 0:00:19]} Bg4 {[%emt 0:00:34]} 11. h3 {[%emt 0:01:55]} Bh5 {[%emt 0:00:35]} 12. Be2 {[%emt 0:03:12]} Re8 {[%emt 0:03:57]} 13. Na4 {[%emt 0:07:43]} Ba7 {[%emt 0:03:34]} 14. Re1 {[%emt 0:01:42]} Rc8 {[%emt 0:04:00]} 15. Bd2 {[%emt 0:02:12]} Ne4 {[%emt 0:03:29]} 16. Rc1 {[%emt 0:00:27]} Qd6 {[%emt 0:21:31]} 17. g4 {[%emt 0:13:12]} Bg6 {[%emt 0:01:56]} 18. Bb5 {[%emt 0:10:25]} Nxd2 19. Nxd2 {[%emt 0:55:50]} Qe6 {[%emt 0:15:59]} 20. Qf3 {[%emt 0:00:30]} Qf6 {[%emt 0:04:04]} 21. Qf4 {[%emt 0:00:00]} Qe6 22. Nc5 {[%emt 0:00:00]} Qe7 23. Nd3 {[%emt 0:01:30]} Red8 {[%emt 0:16:31]} 24. Qa4 {[%emt 0:00:00]} Qh4 {[%emt 0:00:30]} 25. Kg2 Bxd3 {[%emt 0:03:44]} 26. Bxd3 {[%emt 0:00:00]} Ne5 {[%emt 0:00:30]} 27. Rxc8 Rxc8 {[%emt 0:01:15]} 28. Rc1 {[%emt 0:00:00]} Rd8 {[%emt 0:00:30]} 29. Be2 {[%emt 0:00:00]} Nc6 {[%emt 0:07:12]} 30. Bb5 Qf6 {[%emt 0:00:00]} 31. Bxc6 bxc6 {[%emt 0:00:00]} 32. Rxc6 {[%emt 0:04:30]} Qxb2 {[%emt 0:02:10]} 33. Qxa5 {[%emt 0:00:00]} Ra8 {[%emt 0:00:30]} 1-0

[Event "Niedersachsen-ch B 2024"]
[Site "Verden Aller"]
[Date "2024.01.06"]
[Round "6.20"]
[White "Schoenfelder, Dennis Yoel"]
[Black "Frese, Immo"]
[Result "1-0"]
[ECO "B01"]
[WhiteElo "1370"]
[BlackElo "1642"]
[Annotator "NA RC"]
[PlyCount "71"]
[EventDate "2024.01.01"]
[EventType "swiss"]
[EventCountry "GER"]
[SourceTitle "playchess.com"]
[Source "ChessBase"]
[SourceQuality "1"]
[TimeControl "40/5400+30:1800+30"]

1. e4 {[%emt 0:00:03]} d5 {[%emt 0:00:09]} 2. exd5 {[%emt 0:00:02]} Qxd5 {[%emt 0:00:12]} 3. Nf3 {[%emt 0:00:12]} Nf6 {[%emt 0:00:24]} 4. d4 {[%emt 0:00:50]} Bf5 {[%emt 0:01:57]} 5. c4 {[%emt 0:02:02]} Qd8 {[%emt 0:02:17]} 6. Nc3 {[%emt 0:02:20]} e6 {[%emt 0:01:46]} 7. Be2 {[%emt 0:01:58]} Be7 {[%emt 0:02:31]} 8. O-O {[%emt 0:00:47]} O-O {[%emt 0:00:13]} 9. h3 {[%emt 0:01:20]} h6 {[%emt 0:02:05]} 10. Be3 {[%emt 0:01:20]} Nbd7 {[%emt 0:04:09]} 11. Rc1 {[%emt 0:05:10]} c6 {[%emt 0:05:58]} 12. Bd3 {[%emt 0:08:59]} Bxd3 {[%emt 0:01:32]} 13. Qxd3 {[%emt 0:00:03]} Nb6 {[%emt 0:05:36]} 14. Rfd1 {[%emt 0:03:59]} Bb4 {[%emt 0:05:02]} 15. a3 {[%emt 0:07:10]} Bxc3 {[%emt 0:00:15]} 16. Qxc3 {[%emt 0:00:19]} Qe7 {[%emt 0:05:40]} 17. Ne5 {[%emt 0:11:52]} Rfd8 {[%emt 0:03:50]} 18. Nd3 {[%emt 0:04:42]} Ne4 {[%emt 0:03:45]} 19. Qc2 {[%emt 0:01:09]} Rac8 {[%emt 0:02:21]} 20. f3 {[%emt 0:02:32]} Nf6 {[%emt 0:04:48]} 21. Bf2 {[%emt 0:05:20]} Qc7 {[%emt 0:04:16]} 22. Nc5 {[%emt 0:02:16]} Nbd7 {[%emt 0:03:38]} 23. Ne4 {[%emt 0:00:57]} Nxe4 {[%emt 0:03:59]} 24. fxe4 {[%emt 0:01:16]} Nf6 {[%emt 0:07:52]} 25. e5 {[%emt 0:02:32]} Nd7 {[%emt 0:01:50]} 26. Bh4 {[%emt 0:01:11]} Re8 {[%emt 0:03:36]} 27. b4 {[%emt 0:04:02]} b6 {[%emt 0:03:19]} 28. Bg3 {[%emt 0:04:11]} Red8 {[%emt 0:03:44]} 29. Qe4 {[%emt 0:01:23]} c5 {[%emt 0:03:38]} 30. bxc5 {[%emt 0:01:26]} bxc5 {[%emt 0:00:02]} 31. d5 {[%emt 0:00:23]} exd5 {[%emt 0:01:46]} 32. cxd5 {[%emt 0:00:31]} Re8 {[%emt 0:03:43]} 33. d6 {[%emt 0:01:19]} Qc6 {[%emt 0:01:04]} 34. Qxc6 {[%emt 0:03:16]} Rxc6 {[%emt 0:00:02]} 35. Re1 {[%emt 0:00:27]} f6 {[%emt 0:03:15]} 36. e6 {[%emt 0:01:40]} 1-0

[Event "Niedersachsen-ch B 2024"]
[Site "Verden Aller"]
[Date "2024.01.06"]
[Round "6.21"]
[White "Sanchez Tapia, Luis G."]
[Black "Weist, Hartmut"]
[Result "0-1"]
[ECO "E20"]
[WhiteElo "1576"]
[BlackElo "1581"]
[Annotator "NA RC"]
[PlyCount "114"]
[EventDate "2024.01.01"]
[EventType "swiss"]
[EventCountry "GER"]
[SourceTitle "playchess.com"]
[Source "ChessBase"]
[SourceQuality "1"]
[TimeControl "40/5400+30:1800+30"]

1. d4 {[%emt 0:00:03]} Nf6 {[%emt 0:00:09]} 2. c4 {[%emt 0:00:04]} e6 {[%emt 0:00:11]} 3. Nc3 {[%emt 0:00:05]} Bb4 {[%emt 0:00:17]} 4. f3 {[%emt 0:00:05]} d5 {[%emt 0:02:08]} 5. a3 {[%emt 0:00:09]} Bxc3+ {[%emt 0:00:30]} 6. bxc3 {[%emt 0:00:06]} Bd7 {[%emt 0:03:35]} 7. e3 {[%emt 0:06:47]} c5 {[%emt 0:02:36]} 8. Bd3 {[%emt 0:05:15]} Nc6 {[%emt 0:02:05]} 9. cxd5 {[%emt 0:05:01]} exd5 {[%emt 0:05:45]} 10. Ne2 {[%emt 0:01:21]} c4 {[%emt 0:03:13]} 11. Bc2 {[%emt 0:00:52]} b5 {[%emt 0:02:34]} 12. Nf4 {[%emt 0:05:29]} a5 {[%emt 0:06:54]} 13. Bd2 {[%emt 0:05:50]} Rb8 {[%emt 0:03:05]} 14. O-O {[%emt 0:04:43]} b4 {[%emt 0:02:30]} 15. axb4 {[%emt 0:06:25]} axb4 {[%emt 0:00:14]} 16. cxb4 {[%emt 0:00:07]} Nxb4 {[%emt 0:00:32]} 17. Bxb4 {[%emt 0:06:36]} Rxb4 {[%emt 0:01:22]} 18. e4 {[%emt 0:00:45]} dxe4 {[%emt 0:02:43]} 19. fxe4 {[%emt 0:00:32]} O-O {[%emt 0:01:57]} 20. Qd2 {[%emt 0:12:38]} Rb8 {[%emt 0:10:44]} 21. e5 {[%emt 0:01:29]} Ng4 {[%emt 0:02:30]} 22. Ra3 {[%emt 0:07:00]} Qb6 {[%emt 0:06:22]} 23. Kh1 {[%emt 0:03:36]} Rfd8 {[%emt 0:06:44]} 24. Rg3 {[%emt 0:06:06]} Qb4 {[%emt 0:07:28]} 25. Qc1 {[%emt 0:02:48]} c3 {[%emt 0:01:47]} 26. h3 {[%emt 0:01:12]} Qxd4 {[%emt 0:05:21]} 27. hxg4 {[%emt 0:02:43]} Qxe5 {[%emt 0:00:18]} 28. Rxc3 {[%emt 0:01:51]} Bxg4 {[%emt 0:03:45]} 29. Rg3 {[%emt 0:01:56]} h5 {[%emt 0:03:58]} 30. Qe3 {[%emt 0:03:17]} Qxe3 {[%emt 0:02:41]} 31. Rxe3 {[%emt 0:00:06]} Rd2 {[%emt 0:01:45]} 32. Bd3 {[%emt 0:00:38]} g5 {[%emt 0:02:05]} 33. Nd5 {[%emt 0:02:20]} Kg7 {[%emt 0:00:41]} 34. Nf6 {[%emt 0:03:10]} Rbb2 {[%emt 0:02:16]} 35. Nxg4 {[%emt 0:01:14]} hxg4 {[%emt 0:00:19]} 36. Rg3 {[%emt 0:00:14]} Rb3 {[%emt 0:01:18]} 37. Rxf7+ {[%emt 0:00:04]} Kxf7 {[%emt 0:02:22]} 38. Bc4+ {[%emt 0:00:08]} Kf6 {[%emt 0:00:29]} 39. Rxb3 {[%emt 0:03:29]} Ke5 {[%emt 0:01:03]} 40. Rd3 {[%emt 0:01:09]} Rb2 {[%emt 0:01:38]} 41. g3 {[%emt 0:05:52]} Rb1+ {[%emt 0:06:50]} 42. Kg2 {[%emt 0:01:34]} Rc1 {[%emt 0:01:24]} 43. Bb3 {[%emt 0:01:49]} Rb1 {[%emt 0:01:56]} 44. Bd5 {[%emt 0:04:59]} Rb2+ {[%emt 0:00:57]} 45. Kf1 {[%emt 0:00:07]} Rb1+ {[%emt 0:00:55]} 46. Ke2 {[%emt 0:00:09]} Rb2+ {[%emt 0:00:49]} 47. Ke3 {[%emt 0:01:22]} Rb1 {[%emt 0:01:04]} 48. Bc6 {[%emt 0:01:23]} Rg1 {[%emt 0:01:33]} 49. Kd2 {[%emt 0:00:28]} Ra1 {[%emt 0:02:35]} 50. Bd7 {[%emt 0:00:26]} Ra2+ {[%emt 0:00:36]} 51. Kc3 {[%emt 0:00:22]} Ke4 {[%emt 0:02:56]} 52. Bc6+ {[%emt 0:03:05]} Ke5 {[%emt 0:01:00]} 53. Rd5+ {[%emt 0:00:38]} Kf6 {[%emt 0:00:23]} 54. Kb3 {[%emt 0:02:48]} Re2 {[%emt 0:02:07]} 55. Bd7 {[%emt 0:01:44]} Re3+ {[%emt 0:00:37]} 56. Rd3 {[%emt 0:00:08]} Rxd3+ {[%emt 0:01:52]} 57. Kc4 {[%emt 0:14:43]} Ke5 0-1

[Event "Niedersachsen-ch B 2024"]
[Site "Verden Aller"]
[Date "2024.01.06"]
[Round "6.22"]
[White "Nguyen, Laurentius"]
[Black "Laun, Kurt"]
[Result "1-0"]
[ECO "A05"]
[WhiteElo "1546"]
[BlackElo "1448"]
[Annotator "NA RC"]
[PlyCount "83"]
[EventDate "2024.01.01"]
[EventType "swiss"]
[EventCountry "GER"]
[SourceTitle "playchess.com"]
[Source "ChessBase"]
[SourceQuality "1"]
[TimeControl "40/5400+30:1800+30"]

1. e4 {[%emt 0:00:01]} c5 {[%emt 0:00:10]} 2. Nf3 {[%emt 0:04:07]} Nc6 {[%emt 0:00:17]} 3. d3 {[%emt 0:00:57]} d6 {[%emt 0:01:58]} 4. g3 {[%emt 0:01:42]} Nf6 {[%emt 0:00:31]} 5. Bg2 {[%emt 0:00:11]} g6 {[%emt 0:01:12]} 6. O-O {[%emt 0:00:18]} Bg7 {[%emt 0:00:07]} 7. Re1 {[%emt 0:01:57]} O-O {[%emt 0:00:44]} 8. c3 {[%emt 0:05:08]} Rb8 {[%emt 0:04:55]} 9. Nh4 {[%emt 0:01:54]} Bg4 {[%emt 0:05:08]} 10. f3 {[%emt 0:00:21]} Bc8 {[%emt 0:00:29]} 11. f4 {[%emt 0:00:37]} Bg4 {[%emt 0:04:14]} 12. Nf3 {[%emt 0:03:10]} e5 {[%emt 0:05:34]} 13. h3 {[%emt 0:02:31]} Bxf3 {[%emt 0:01:15]} 14. Qxf3 {[%emt 0:02:30]} b5 {[%emt 0:02:14]} 15. f5 {[%emt 0:02:13]} Qc7 {[%emt 0:08:30]} 16. g4 {[%emt 0:06:42]} b4 {[%emt 0:06:32]} 17. g5 {[%emt 0:02:44]} Nd7 {[%emt 0:03:29]} 18. f6 {[%emt 0:01:10]} Bh8 {[%emt 0:00:07]} 19. Nd2 {[%emt 0:06:02]} Rfd8 {[%emt 0:04:14]} 20. Qf2 {[%emt 0:13:01]} Nf8 {[%emt 0:01:07]} 21. Nc4 {[%emt 0:06:29]} Ne6 {[%emt 0:00:42]} 22. Ne3 {[%emt 0:01:55]} Qd7 {[%emt 0:03:53]} 23. Ng4 {[%emt 0:01:54]} a5 {[%emt 0:02:42]} 24. Qg3 {[%emt 0:11:04]} a4 {[%emt 0:00:59]} 25. a3 {[%emt 0:02:08]} bxc3 {[%emt 0:41:57]} 26. bxc3 {[%emt 0:00:43]} Rb7 {[%emt 0:00:00]} 27. Rf1 {[%emt 0:09:14]} Rdb8 {[%emt 0:00:00]} 28. h4 {[%emt 0:00:47]} Rb3 {[%emt 0:00:00]} 29. Qe1 {[%emt 0:01:23]} Nxg5 {[%emt 0:00:00]} 30. Nh6+ {[%emt 0:00:12]} Kf8 {[%emt 0:00:00]} 31. Bxg5 {[%emt 0:06:12]} Nd8 {[%emt 0:00:00]} 32. Rf2 {[%emt 0:02:00]} Qb5 {[%emt 0:00:00]} 33. Bf1 {[%emt 0:01:34]} Qb6 {[%emt 0:00:00]} 34. Ng4 {[%emt 0:00:40]} Ne6 {[%emt 0:00:00]} 35. Bh6+ {[%emt 0:00:47]} Ke8 {[%emt 0:00:00]} 36. Ne3 {[%emt 0:00:24]} Nf4 {[%emt 0:00:00]} 37. Bxf4 {[%emt 0:00:19]} exf4 {[%emt 0:00:00]} 38. Rxf4 {[%emt 0:01:08]} c4 {[%emt 0:00:00]} 39. d4 {[%emt 0:00:44]} Qa5 {[%emt 0:00:00]} 40. Nxc4 {[%emt 0:00:48]} Qc7 {[%emt 0:00:00]} 41. Ne3 {[%emt 0:03:09]} R8b5 {[%emt 0:00:00]} 42. Bxb5+ {[%emt 0:30:40]} 1-0

[Event "Niedersachsen-ch B 2024"]
[Site "Verden Aller"]
[Date "2024.01.06"]
[Round "6.23"]
[White "Lieb, Max"]
[Black "Wilmink, Luca"]
[Result "1/2-1/2"]
[ECO "B31"]
[WhiteElo "1365"]
[BlackElo "1539"]
[Annotator "NA RC"]
[PlyCount "86"]
[EventDate "2024.01.01"]
[EventType "swiss"]
[EventCountry "GER"]
[SourceTitle "playchess.com"]
[Source "ChessBase"]
[SourceQuality "1"]
[TimeControl "40/5400+30:1800+30"]

1. e4 {[%emt 0:00:11]} c5 {[%emt 0:00:15]} 2. Nf3 {[%emt 0:00:10]} Nc6 {[%emt 0:00:33]} 3. Bb5 {[%emt 0:00:10]} g6 {[%emt 0:01:08]} 4. O-O {[%emt 0:00:13]} Bg7 {[%emt 0:00:56]} 5. Bxc6 {[%emt 0:00:58]} dxc6 {[%emt 0:01:19]} 6. d3 {[%emt 0:00:18]} Nf6 {[%emt 0:01:02]} 7. h3 {[%emt 0:00:11]} O-O {[%emt 0:02:22]} 8. Be3 {[%emt 0:00:42]} b6 {[%emt 0:00:18]} 9. Re1 {[%emt 0:00:38]} Qc7 {[%emt 0:03:41]} 10. Nbd2 {[%emt 0:00:29]} Ba6 {[%emt 0:02:23]} 11. a4 {[%emt 0:00:46]} Rfd8 {[%emt 0:01:15]} 12. a5 {[%emt 0:03:48]} Qb7 {[%emt 0:10:59]} 13. Qc1 {[%emt 0:03:06]} Nd7 {[%emt 0:02:36]} 14. Nc4 {[%emt 0:06:01]} Bxc4 {[%emt 0:03:40]} 15. dxc4 {[%emt 0:00:14]} bxa5 {[%emt 0:02:33]} 16. c3 {[%emt 0:00:39]} a4 {[%emt 0:01:49]} 17. Rxa4 {[%emt 0:00:50]} Nb6 {[%emt 0:01:47]} 18. Ra2 {[%emt 0:01:19]} Nxc4 {[%emt 0:03:11]} 19. Bxc5 {[%emt 0:00:26]} Qb3 {[%emt 0:01:28]} 20. Rxa7 {[%emt 0:03:28]} Rxa7 {[%emt 0:00:08]} 21. Bxa7 {[%emt 0:00:08]} Qxb2 {[%emt 0:00:08]} 22. Bd4 {[%emt 0:01:01]} Qxc1 {[%emt 0:07:44]} 23. Rxc1 {[%emt 0:01:30]} e5 {[%emt 0:00:30]} 24. Bc5 {[%emt 0:01:39]} Nd2 {[%emt 0:00:44]} 25. Nxd2 {[%emt 0:02:34]} Rxd2 {[%emt 0:00:27]} 26. Be3 {[%emt 0:00:49]} Ra2 {[%emt 0:00:44]} 27. Kf1 {[%emt 0:00:15]} h5 {[%emt 0:00:23]} 28. Ke1 {[%emt 0:00:30]} Kh7 {[%emt 0:00:09]} 29. g4 {[%emt 0:03:04]} f6 {[%emt 0:00:10]} 30. Rd1 {[%emt 0:01:35]} Rc2 {[%emt 0:00:56]} 31. Rc1 {[%emt 0:00:23]} Rxc1+ {[%emt 0:01:53]} 32. Bxc1 {[%emt 0:00:15]} Bh6 {[%emt 0:00:23]} 33. Ba3 {[%emt 0:00:44]} Bf4 {[%emt 0:00:58]} 34. Ke2 {[%emt 0:00:38]} hxg4 {[%emt 0:00:28]} 35. hxg4 {[%emt 0:00:12]} Kh6 {[%emt 0:00:17]} 36. Bc5 {[%emt 0:00:46]} Kg5 {[%emt 0:00:19]} 37. f3 {[%emt 0:00:10]} Kh4 {[%emt 0:00:45]} 38. Be7 {[%emt 0:01:13]} Bg5 {[%emt 0:00:11]} 39. Kf2 {[%emt 0:00:41]} Kh3 {[%emt 0:04:19]} 40. c4 {[%emt 0:00:28]} Bh4+ {[%emt 0:00:52]} 41. Ke2 {[%emt 0:30:10]} Kg3 {[%emt 0:30:42]} 42. Bd8 {[%emt 0:00:46]} Bg5 {[%emt 0:00:52]} 43. Be7 {[%emt 0:00:18]} Kg2 {[%emt 0:00:08]} 1/2-1/2